[Event "Titled Tuesday Blitz April 4 Late 2023"]
[White "Sargsyan, Shant"]
[Black "EREBUNI91"]
[WhiteFideId "13306766"]
[WhiteElo "2628"]
[BlackElo "2640"]
[Result "1/2-1/2"]
[Round "02"]
[TimeControl "180+2"]
[Date "2023.04.04"]
[WhiteClock "0:00:17"]
[BlackClock "0:00:08"]

1. c4 {[%clk 0:02:59]}  e6 {[%clk 0:02:59]} 2. g3 {[%clk 0:03:00]}  d5 {[%clk 0:03:00]} 3. Bg2 {[%clk 0:03:00]}  Nf6 {[%clk 0:03:00]} 4. Nf3 {[%clk 0:03:01]}  Be7 {[%clk 0:03:00]} 5. O-O {[%clk 0:03:02]}  O-O {[%clk 0:03:01]} 6. b3 {[%clk 0:03:02]}  c6 {[%clk 0:03:01]} 7. Bb2 {[%clk 0:03:02]}  b6 {[%clk 0:03:01]} 8. d3 {[%clk 0:03:03]}  Bb7 {[%clk 0:03:02]} 9. Nbd2 {[%clk 0:03:03]}  Nbd7 {[%clk 0:03:01]} 10. e4 {[%clk 0:03:04]}  c5 {[%clk 0:02:59]} 11. exd5 {[%clk 0:03:02]}  exd5 {[%clk 0:02:59]} 12. Nh4 {[%clk 0:03:03]}  Re8 {[%clk 0:02:54]} 13. Nf5 {[%clk 0:03:00]}  Bf8 {[%clk 0:02:52]} 14. Ne3 {[%clk 0:02:46]}  Ne5 {[%clk 0:02:12]} 15. Bxe5 {[%clk 0:02:44]}  Rxe5 {[%clk 0:02:13]} 16. cxd5 {[%clk 0:02:45]}  Nxd5 {[%clk 0:01:47]} 17. Ndc4 {[%clk 0:02:45]}  Re7 {[%clk 0:01:38]} 18. Nf5 {[%clk 0:02:43]}  Rd7 {[%clk 0:01:36]} 19. Ne5 {[%clk 0:02:33]}  Rc7 {[%clk 0:01:36]} 20. Re1 {[%clk 0:02:12]}  g6 {[%clk 0:01:22]} 21. Nh4 {[%clk 0:01:41]}  Bg7 {[%clk 0:01:19]} 22. Rc1 {[%clk 0:01:41]}  Nb4 {[%clk 0:01:16]} 23. Bxb7 {[%clk 0:01:37]}  Rxb7 {[%clk 0:01:17]} 24. Qf3 {[%clk 0:01:37]}  Re7 {[%clk 0:01:07]} 25. Nc6 {[%clk 0:01:35]}  Nxc6 {[%clk 0:01:07]} 26. Qxc6 {[%clk 0:01:35]}  Rxe1+ {[%clk 0:00:58]} 27. Rxe1 {[%clk 0:01:36]}  Rc8 {[%clk 0:00:54]} 28. Qb7 {[%clk 0:01:33]}  Rc7 {[%clk 0:00:50]} 29. Qe4 {[%clk 0:01:32]}  Rd7 {[%clk 0:00:48]} 30. Qc6 {[%clk 0:01:19]}  Re7 {[%clk 0:00:43]} 31. Rxe7 {[%clk 0:01:16]}  Qxe7 {[%clk 0:00:44]} 32. Nf3 {[%clk 0:01:17]}  h6 {[%clk 0:00:36]} 33. Kg2 {[%clk 0:01:17]}  Bf8 {[%clk 0:00:35]} 34. h4 {[%clk 0:01:15]}  Kg7 {[%clk 0:00:31]} 35. h5 {[%clk 0:01:11]}  Qd6 {[%clk 0:00:25]} 36. Qe4 {[%clk 0:01:09]}  Qe6 {[%clk 0:00:21]} 37. Qxe6 {[%clk 0:01:01]}  fxe6 {[%clk 0:00:22]} 38. hxg6 {[%clk 0:01:02]}  Kxg6 {[%clk 0:00:23]} 39. Ne5+ {[%clk 0:01:02]}  Kf5 {[%clk 0:00:20]} 40. Nc6 {[%clk 0:01:01]}  a5 {[%clk 0:00:17]} 41. f4 {[%clk 0:00:57]}  Bd6 {[%clk 0:00:16]} 42. Kf3 {[%clk 0:00:57]}  h5 {[%clk 0:00:16]} 43. Na7 {[%clk 0:00:48]}  e5 {[%clk 0:00:14]} 44. Nb5 {[%clk 0:00:48]}  Bb8 {[%clk 0:00:13]} 45. fxe5 {[%clk 0:00:48]}  Bxe5 {[%clk 0:00:14]} 46. Na3 {[%clk 0:00:47]}  Bd6 {[%clk 0:00:13]} 47. Nc4 {[%clk 0:00:47]}  Bc7 {[%clk 0:00:14]} 48. a4 {[%clk 0:00:48]}  Kg5 {[%clk 0:00:14]} 49. Ne3 {[%clk 0:00:46]}  Bd8 {[%clk 0:00:11]} 50. Ng2 {[%clk 0:00:34]}  Kf5 {[%clk 0:00:11]} 51. Nf4 {[%clk 0:00:31]}  h4 {[%clk 0:00:11]} 52. gxh4 {[%clk 0:00:32]}  Bxh4 {[%clk 0:00:12]} 53. Nd5 {[%clk 0:00:31]}  Bd8 {[%clk 0:00:12]} 54. Nc3 {[%clk 0:00:29]}  Ke5 {[%clk 0:00:12]} 55. Nb5 {[%clk 0:00:30]}  Bg5 {[%clk 0:00:13]} 56. Ke2 {[%clk 0:00:30]}  Bd8 {[%clk 0:00:13]} 57. Kd2 {[%clk 0:00:29]}  Kd5 {[%clk 0:00:13]} 58. Kc3 {[%clk 0:00:30]}  Bf6+ {[%clk 0:00:14]} 59. Kc2 {[%clk 0:00:31]}  Bd8 {[%clk 0:00:14]} 60. Kd2 {[%clk 0:00:30]}  Bg5+ {[%clk 0:00:14]} 61. Ke2 {[%clk 0:00:30]}  Bd8 {[%clk 0:00:15]} 62. Kf3 {[%clk 0:00:30]}  Ke5 {[%clk 0:00:15]} 63. Kg4 {[%clk 0:00:26]}  Be7 {[%clk 0:00:16]} 64. Kg3 {[%clk 0:00:25]}  Bd8 {[%clk 0:00:15]} 65. Kf3 {[%clk 0:00:25]}  Be7 {[%clk 0:00:16]} 66. Ke3 {[%clk 0:00:26]}  Bd8 {[%clk 0:00:16]} 67. Kd2 {[%clk 0:00:26]}  Bf6 {[%clk 0:00:15]} 68. Kc2 {[%clk 0:00:26]}  Kd5 {[%clk 0:00:15]} 69. Na3 {[%clk 0:00:26]}  Bd8 {[%clk 0:00:15]} 70. Nc4 {[%clk 0:00:26]}  Kd4 {[%clk 0:00:16]} 71. Nd6 {[%clk 0:00:25]}  Kd5 {[%clk 0:00:15]} 72. Ne4 {[%clk 0:00:24]}  Bc7 {[%clk 0:00:15]} 73. Nc3+ {[%clk 0:00:24]}  Kc6 {[%clk 0:00:14]} 74. Nb5 {[%clk 0:00:24]}  Bd8 {[%clk 0:00:13]} 75. Kc3 {[%clk 0:00:25]}  Kd5 {[%clk 0:00:13]} 76. Kb2 {[%clk 0:00:22]}  Bf6+ {[%clk 0:00:14]} 77. Kb1 {[%clk 0:00:23]}  Bd8 {[%clk 0:00:14]} 78. Ka2 {[%clk 0:00:22]}  Bf6 {[%clk 0:00:14]} 79. Kb1 {[%clk 0:00:19]}  Bd8 {[%clk 0:00:14]} 80. Na3 {[%clk 0:00:18]}  Kd4 {[%clk 0:00:14]} 81. Kc2 {[%clk 0:00:19]}  Kd5 {[%clk 0:00:14]} 82. Nb1 {[%clk 0:00:19]}  Bf6 {[%clk 0:00:14]} 83. Nd2 {[%clk 0:00:19]}  Bd8 {[%clk 0:00:14]} 84. Nc4 {[%clk 0:00:20]}  Bc7 {[%clk 0:00:15]} 85. Kd2 {[%clk 0:00:20]}  Bd8 {[%clk 0:00:15]} 86. Ne3+ {[%clk 0:00:19]}  Kd4 {[%clk 0:00:14]} 87. Nc2+ {[%clk 0:00:20]}  Kd5 {[%clk 0:00:15]} 88. Ke2 {[%clk 0:00:19]}  Ke5 {[%clk 0:00:15]} 89. Kf3 {[%clk 0:00:19]}  Be7 {[%clk 0:00:15]} 90. Kf2 {[%clk 0:00:19]}  Bd8 {[%clk 0:00:13]} 91. Ke2 {[%clk 0:00:19]}  Bc7 {[%clk 0:00:13]} 92. Kd2 {[%clk 0:00:20]}  Bd8 {[%clk 0:00:13]} 93. Kc3 {[%clk 0:00:21]}  Kd5 {[%clk 0:00:14]} 94. Ne3+ {[%clk 0:00:21]}  Kc6 {[%clk 0:00:09]} 95. Kc4 {[%clk 0:00:22]}  Bf6 {[%clk 0:00:09]} 96. Ng4 {[%clk 0:00:22]}  Ba1 {[%clk 0:00:09]} 97. Nh6 {[%clk 0:00:20]}  Bb2 {[%clk 0:00:09]} 98. Nf5 {[%clk 0:00:21]}  Bf6 {[%clk 0:00:08]} 99. Ne3 {[%clk 0:00:21]}  Bd4 {[%clk 0:00:08]} 100. Nd5 {[%clk 0:00:21]}  Bb2 {[%clk 0:00:07]} 101. Ne7+ {[%clk 0:00:21]}  Kd7 {[%clk 0:00:08]} 102. Ng6 {[%clk 0:00:17]}  Kc6 {[%clk 0:00:08]} 1/2-1/2


[Site "https://www.chess.com"]

[Event "Titled Tuesday Blitz April 4 Late 2023"]
[White "Vidit, Santosh Gujrathi"]
[Black "Gegenfurtner, Juergen"]
[WhiteFideId "5029465"]
[BlackFideId "24632147"]
[WhiteElo "2651"]
[BlackElo "2398"]
[Result "1-0"]
[Round "02"]
[TimeControl "180+2"]
[Date "2023.04.04"]
[WhiteClock "0:00:31"]
[BlackClock "0:00:24"]

1. c4 {[%clk 0:03:00]}  e6 {[%clk 0:02:59]} 2. Nc3 {[%clk 0:02:57]}  d5 {[%clk 0:03:00]} 3. d4 {[%clk 0:02:57]}  Nf6 {[%clk 0:03:00]} 4. cxd5 {[%clk 0:02:56]}  exd5 {[%clk 0:03:01]} 5. Bg5 {[%clk 0:02:56]}  Nbd7 {[%clk 0:03:02]} 6. e3 {[%clk 0:02:56]}  c6 {[%clk 0:03:02]} 7. Bd3 {[%clk 0:02:56]}  Be7 {[%clk 0:03:03]} 8. Nge2 {[%clk 0:02:56]}  O-O {[%clk 0:03:03]} 9. O-O {[%clk 0:02:51]}  Re8 {[%clk 0:03:04]} 10. a4 {[%clk 0:02:48]}  Ne4 {[%clk 0:02:44]} 11. Bf4 {[%clk 0:02:36]}  Ndf6 {[%clk 0:02:39]} 12. f3 {[%clk 0:02:32]}  Nxc3 {[%clk 0:02:32]} 13. bxc3 {[%clk 0:02:32]}  Nh5 {[%clk 0:02:30]} 14. Be5 {[%clk 0:02:31]}  f6 {[%clk 0:02:29]} 15. Bg3 {[%clk 0:02:13]}  Nxg3 {[%clk 0:02:29]} 16. Nxg3 {[%clk 0:02:13]}  Bd6 {[%clk 0:02:19]} 17. Re1 {[%clk 0:02:07]}  Qc7 {[%clk 0:02:05]} 18. Qc2 {[%clk 0:01:57]}  g6 {[%clk 0:02:03]} 19. Nf1 {[%clk 0:01:54]}  c5 {[%clk 0:02:00]} 20. Qf2 {[%clk 0:01:45]}  Be6 {[%clk 0:01:58]} 21. f4 {[%clk 0:01:37]}  Bf7 {[%clk 0:01:55]} 22. h4 {[%clk 0:01:33]}  Rac8 {[%clk 0:01:45]} 23. h5 {[%clk 0:01:30]}  Kg7 {[%clk 0:01:44]} 24. Qh4 {[%clk 0:01:24]}  Be7 {[%clk 0:01:35]} 25. Qg4 {[%clk 0:01:18]}  f5 {[%clk 0:00:55]} 26. Bxf5 {[%clk 0:01:16]}  Rcd8 {[%clk 0:00:48]} 27. Nh2 {[%clk 0:01:10]}  Bf6 {[%clk 0:00:44]} 28. Nf3 {[%clk 0:01:06]}  Qe7 {[%clk 0:00:43]} 29. Ne5 {[%clk 0:01:00]}  Bxe5 {[%clk 0:00:39]} 30. fxe5 {[%clk 0:01:01]}  Kh6 {[%clk 0:00:37]} 31. hxg6 {[%clk 0:00:59]}  hxg6 {[%clk 0:00:38]} 32. Bd3 {[%clk 0:00:56]}  Rh8 {[%clk 0:00:36]} 33. Rf1 {[%clk 0:00:56]}  Kg7 {[%clk 0:00:37]} 34. Rf6 {[%clk 0:00:55]}  Rh6 {[%clk 0:00:37]} 35. Raf1 {[%clk 0:00:53]}  Be8 {[%clk 0:00:36]} 36. Qg5 {[%clk 0:00:48]}  Rd7 {[%clk 0:00:34]} 37. e6 {[%clk 0:00:43]}  Rc7 {[%clk 0:00:34]} 38. Qe5 {[%clk 0:00:33]}  Kh7 {[%clk 0:00:27]} 39. Rf8 {[%clk 0:00:33]}  Qg7 {[%clk 0:00:25]} 40. Qxg7+ {[%clk 0:00:31]}  Kxg7 {[%clk 0:00:24]} 41. Rxe8 {[%clk 0:00:31]} 1-0


[Site "https://www.chess.com"]

[Event "Titled Tuesday Blitz April 4 Late 2023"]
[White "Perske, Thore"]
[Black "Kramnik, Vladimir"]
[WhiteFideId "12902195"]
[BlackFideId "4101588"]
[WhiteElo "2336"]
[BlackElo "2712"]
[Result "1-0"]
[Round "02"]
[TimeControl "180+2"]
[Date "2023.04.04"]
[WhiteClock "0:00:22"]
[BlackClock "0:00:07"]

1. d4 {[%clk 0:03:00]}  Nf6 {[%clk 0:02:59]} 2. g3 {[%clk 0:02:59]}  d5 {[%clk 0:02:57]} 3. Bg2 {[%clk 0:02:58]}  c6 {[%clk 0:02:56]} 4. Nf3 {[%clk 0:02:58]}  Bf5 {[%clk 0:02:55]} 5. c4 {[%clk 0:02:58]}  e6 {[%clk 0:02:55]} 6. Nc3 {[%clk 0:02:58]}  h6 {[%clk 0:02:54]} 7. Qb3 {[%clk 0:02:57]}  Qb6 {[%clk 0:02:53]} 8. c5 {[%clk 0:02:52]}  Qa6 {[%clk 0:02:48]} 9. Bf1 {[%clk 0:02:52]}  b5 {[%clk 0:02:32]} 10. e3 {[%clk 0:02:27]}  Qc8 {[%clk 0:02:17]} 11. a4 {[%clk 0:02:27]}  b4 {[%clk 0:02:16]} 12. Qxb4 {[%clk 0:02:18]}  Be7 {[%clk 0:02:16]} 13. Bg2 {[%clk 0:02:17]}  O-O {[%clk 0:02:11]} 14. O-O {[%clk 0:02:17]}  a5 {[%clk 0:02:10]} 15. Qa3 {[%clk 0:02:17]}  Na6 {[%clk 0:02:10]} 16. Bd2 {[%clk 0:02:16]}  Nb4 {[%clk 0:02:08]} 17. Ne1 {[%clk 0:02:08]}  Rb8 {[%clk 0:02:06]} 18. Na2 {[%clk 0:02:05]}  Nxa2 {[%clk 0:02:05]} 19. Qxa2 {[%clk 0:02:01]}  Qa6 {[%clk 0:02:02]} 20. Bc3 {[%clk 0:01:56]}  Ne4 {[%clk 0:01:54]} 21. Nf3 {[%clk 0:01:43]}  f6 {[%clk 0:01:50]} 22. Rfc1 {[%clk 0:01:35]}  g5 {[%clk 0:01:49]} 23. Nd2 {[%clk 0:01:32]}  Nxd2 {[%clk 0:01:43]} 24. Bxd2 {[%clk 0:01:32]}  Bd3 {[%clk 0:01:39]} 25. Bf1 {[%clk 0:01:25]}  Bxf1 {[%clk 0:01:38]} 26. Rxf1 {[%clk 0:01:25]}  f5 {[%clk 0:01:34]} 27. Qa3 {[%clk 0:01:10]}  Bf6 {[%clk 0:01:32]} 28. Qc3 {[%clk 0:01:09]}  Ra8 {[%clk 0:01:24]} 29. Rfb1 {[%clk 0:01:08]}  Qe2 {[%clk 0:01:20]} 30. b4 {[%clk 0:00:56]}  axb4 {[%clk 0:01:20]} 31. Rxb4 {[%clk 0:00:54]}  Ra7 {[%clk 0:01:20]} 32. a5 {[%clk 0:00:52]}  h5 {[%clk 0:01:18]} 33. Rb6 {[%clk 0:00:43]}  Rc8 {[%clk 0:01:09]} 34. Qc1 {[%clk 0:00:37]}  h4 {[%clk 0:01:03]} 35. Qd1 {[%clk 0:00:33]}  Qxd1+ {[%clk 0:01:02]} 36. Rxd1 {[%clk 0:00:34]}  e5 {[%clk 0:00:58]} 37. Bc3 {[%clk 0:00:34]}  exd4 {[%clk 0:00:44]} 38. exd4 {[%clk 0:00:34]}  Bd8 {[%clk 0:00:44]} 39. Rb3 {[%clk 0:00:23]}  Bxa5 {[%clk 0:00:30]} 40. Ra3 {[%clk 0:00:19]}  Rca8 {[%clk 0:00:19]} 41. Rda1 {[%clk 0:00:19]}  Bxc3 {[%clk 0:00:19]} 42. Rxa7 {[%clk 0:00:19]}  Re8 {[%clk 0:00:18]} 43. Ra8 {[%clk 0:00:19]}  Rxa8 {[%clk 0:00:17]} 44. Rxa8+ {[%clk 0:00:20]}  Kf7 {[%clk 0:00:17]} 45. Rc8 {[%clk 0:00:20]}  Bxd4 {[%clk 0:00:15]} 46. Rxc6 {[%clk 0:00:20]}  h3 {[%clk 0:00:15]} 47. Rd6 {[%clk 0:00:18]}  Bxc5 {[%clk 0:00:12]} 48. Rxd5 {[%clk 0:00:19]}  Bb6 {[%clk 0:00:12]} 49. Rxf5+ {[%clk 0:00:19]}  Kg6 {[%clk 0:00:12]} 50. Rb5 {[%clk 0:00:19]}  Bd4 {[%clk 0:00:12]} 51. Kf1 {[%clk 0:00:19]}  Kf6 {[%clk 0:00:10]} 52. g4 {[%clk 0:00:19]}  Kg6 {[%clk 0:00:10]} 53. Ke2 {[%clk 0:00:19]}  Ba7 {[%clk 0:00:09]} 54. Kf3 {[%clk 0:00:19]}  Bd4 {[%clk 0:00:08]} 55. Rf5 {[%clk 0:00:19]}  Bb6 {[%clk 0:00:07]} 56. Kg3 {[%clk 0:00:19]}  Bc7+ {[%clk 0:00:07]} 57. Kxh3 {[%clk 0:00:20]}  Bd6 {[%clk 0:00:07]} 58. Kg2 {[%clk 0:00:20]}  Bc7 {[%clk 0:00:07]} 59. h3 {[%clk 0:00:21]}  Bd6 {[%clk 0:00:08]} 60. Kf3 {[%clk 0:00:21]}  Bc7 {[%clk 0:00:08]} 61. Ke4 {[%clk 0:00:22]}  Bb6 {[%clk 0:00:07]} 62. f4 {[%clk 0:00:22]} 1-0


[Site "https://www.chess.com"]

[Event "Titled Tuesday Blitz April 4 Late 2023"]
[White "Melikyan, Gnel"]
[Black "Alekseenko, Kirill"]
[WhiteFideId "54109990"]
[BlackFideId "4135539"]
[WhiteElo "2138"]
[BlackElo "2683"]
[Result "0-1"]
[Round "02"]
[TimeControl "180+2"]
[Date "2023.04.04"]
[WhiteClock "0:01:06"]
[BlackClock "0:01:27"]

1. e4 {[%clk 0:02:57]}  c5 {[%clk 0:02:59]} 2. Nf3 {[%clk 0:02:57]}  Nc6 {[%clk 0:03:00]} 3. Bb5 {[%clk 0:02:57]}  e6 {[%clk 0:02:58]} 4. O-O {[%clk 0:02:57]}  Nge7 {[%clk 0:02:58]} 5. Re1 {[%clk 0:02:55]}  Nd4 {[%clk 0:02:58]} 6. Nxd4 {[%clk 0:02:53]}  cxd4 {[%clk 0:02:59]} 7. c3 {[%clk 0:02:53]}  a6 {[%clk 0:03:00]} 8. Bf1 {[%clk 0:02:53]}  Nc6 {[%clk 0:03:00]} 9. b3 {[%clk 0:02:46]}  Bc5 {[%clk 0:02:58]} 10. Bb2 {[%clk 0:02:45]}  O-O {[%clk 0:02:57]} 11. Na3 {[%clk 0:02:45]}  b5 {[%clk 0:02:41]} 12. Nc2 {[%clk 0:02:43]}  Qb6 {[%clk 0:02:32]} 13. b4 {[%clk 0:02:39]}  Be7 {[%clk 0:02:31]} 14. a4 {[%clk 0:02:38]}  Bb7 {[%clk 0:02:27]} 15. Qe2 {[%clk 0:02:30]}  bxa4 {[%clk 0:02:09]} 16. Rxa4 {[%clk 0:02:29]}  dxc3 {[%clk 0:02:09]} 17. dxc3 {[%clk 0:02:29]}  Bf6 {[%clk 0:02:07]} 18. Rd1 {[%clk 0:02:21]}  Qc7 {[%clk 0:02:02]} 19. Nd4 {[%clk 0:02:08]}  Ne5 {[%clk 0:01:52]} 20. f4 {[%clk 0:02:04]}  Ng6 {[%clk 0:01:51]} 21. e5 {[%clk 0:01:56]}  Nxf4 {[%clk 0:01:45]} 22. Qc4 {[%clk 0:01:51]}  Qxe5 {[%clk 0:01:38]} 23. Bc1 {[%clk 0:01:46]}  Rac8 {[%clk 0:01:30]} 24. Qb3 {[%clk 0:01:17]}  Qe4 {[%clk 0:01:29]} 25. Qc2 {[%clk 0:01:06]}  Bxd4+ {[%clk 0:01:27]} 0-1


[Site "https://www.chess.com"]

[Event "Titled Tuesday Blitz April 4 Late 2023"]
[White "Atanasov, Anthony"]
[Black "Movahed, Sina"]
[WhiteFideId "2623897"]
[BlackFideId "42520835"]
[WhiteElo "2326"]
[BlackElo "2225"]
[Result "0-1"]
[Round "02"]
[TimeControl "180+2"]
[Date "2023.04.04"]
[WhiteClock "0:00:50"]
[BlackClock "0:01:40"]

1. d4 {[%clk 0:02:58]}  Nf6 {[%clk 0:02:59]} 2. Nf3 {[%clk 0:02:58]}  g6 {[%clk 0:02:59]} 3. c4 {[%clk 0:02:58]}  Bg7 {[%clk 0:02:59]} 4. Nc3 {[%clk 0:02:59]}  O-O {[%clk 0:03:00]} 5. e4 {[%clk 0:02:59]}  d6 {[%clk 0:03:01]} 6. Be2 {[%clk 0:02:58]}  Nbd7 {[%clk 0:03:01]} 7. Be3 {[%clk 0:02:56]}  e5 {[%clk 0:03:01]} 8. O-O {[%clk 0:02:55]}  Qe7 {[%clk 0:03:02]} 9. Qd2 {[%clk 0:02:52]}  exd4 {[%clk 0:02:57]} 10. Bxd4 {[%clk 0:02:42]}  Nxe4 {[%clk 0:02:54]} 11. Nd5 {[%clk 0:02:39]}  Qd8 {[%clk 0:02:52]} 12. Qe3 {[%clk 0:02:39]}  Nef6 {[%clk 0:02:47]} 13. Rac1 {[%clk 0:02:08]}  Re8 {[%clk 0:02:33]} 14. Qd3 {[%clk 0:02:03]}  Nc5 {[%clk 0:02:24]} 15. Qc3 {[%clk 0:01:30]}  Nfe4 {[%clk 0:02:04]} 16. Qc2 {[%clk 0:01:16]}  Bxd4 {[%clk 0:01:58]} 17. Nxd4 {[%clk 0:01:17]}  c6 {[%clk 0:01:55]} 18. Nc3 {[%clk 0:00:50]}  Qf6 {[%clk 0:01:40]} 0-1


[Site "https://www.chess.com"]

[Event "Titled Tuesday Blitz April 4 Late 2023"]
[White "Abdrlauf, Elham"]
[Black "Kleiman, Jake"]
[WhiteFideId "1533533"]
[BlackFideId "2020041"]
[WhiteElo "2469"]
[BlackElo "2621"]
[Result "1-0"]
[Round "02"]
[TimeControl "180+2"]
[Date "2023.04.04"]
[WhiteClock "0:01:23"]
[BlackClock "0:00:51"]

1. e4 {[%clk 0:02:59]}  e5 {[%clk 0:02:59]} 2. Nc3 {[%clk 0:02:59]}  Nf6 {[%clk 0:02:58]} 3. d4 {[%clk 0:02:58]}  exd4 {[%clk 0:02:58]} 4. Qxd4 {[%clk 0:02:59]}  Nc6 {[%clk 0:02:59]} 5. Qd3 {[%clk 0:03:00]}  Bb4 {[%clk 0:02:59]} 6. Ne2 {[%clk 0:03:00]}  O-O {[%clk 0:02:59]} 7. Bg5 {[%clk 0:03:00]}  d6 {[%clk 0:02:54]} 8. f4 {[%clk 0:02:57]}  Bg4 {[%clk 0:02:46]} 9. O-O-O {[%clk 0:02:57]}  Bxc3 {[%clk 0:02:41]} 10. Nxc3 {[%clk 0:02:58]}  Bxd1 {[%clk 0:02:41]} 11. Qxd1 {[%clk 0:02:59]}  h6 {[%clk 0:02:14]} 12. Bh4 {[%clk 0:02:58]}  g5 {[%clk 0:02:14]} 13. fxg5 {[%clk 0:02:59]}  Nh7 {[%clk 0:02:14]} 14. Qh5 {[%clk 0:02:54]}  hxg5 {[%clk 0:02:12]} 15. Bg3 {[%clk 0:02:54]}  Qf6 {[%clk 0:01:53]} 16. Bc4 {[%clk 0:02:52]}  Kh8 {[%clk 0:01:46]} 17. h4 {[%clk 0:02:47]}  Qg6 {[%clk 0:01:41]} 18. Qe2 {[%clk 0:02:38]}  Ne5 {[%clk 0:01:37]} 19. Bxe5+ {[%clk 0:02:23]}  dxe5 {[%clk 0:01:38]} 20. hxg5 {[%clk 0:02:24]}  Qxg5+ {[%clk 0:01:35]} 21. Kb1 {[%clk 0:02:23]}  c6 {[%clk 0:01:31]} 22. a4 {[%clk 0:02:21]}  Rad8 {[%clk 0:01:31]} 23. Rh5 {[%clk 0:02:11]}  Rd2 {[%clk 0:01:13]} 24. Qf3 {[%clk 0:01:55]}  Qxg2 {[%clk 0:01:05]} 25. Qf6+ {[%clk 0:01:25]}  Kg8 {[%clk 0:01:03]} 26. Qh6 {[%clk 0:01:24]}  Qg7 {[%clk 0:00:51]} 27. Qxd2 {[%clk 0:01:23]} 1-0


[Site "https://www.chess.com"]

[Event "Titled Tuesday Blitz April 4 Late 2023"]
[White "Srinath, Rao S.V."]
[Black "Zakhartsov, Vladimir"]
[WhiteFideId "5028876"]
[BlackFideId "4145097"]
[WhiteElo "2196"]
[BlackElo "2497"]
[Result "0-1"]
[Round "02"]
[TimeControl "180+2"]
[Date "2023.04.04"]
[WhiteClock "0:00:08"]
[BlackClock "0:00:16"]

1. e4 {[%clk 0:03:00]}  c5 {[%clk 0:03:00]} 2. c3 {[%clk 0:02:59]}  Nf6 {[%clk 0:02:59]} 3. e5 {[%clk 0:02:59]}  Nd5 {[%clk 0:03:00]} 4. d4 {[%clk 0:03:00]}  cxd4 {[%clk 0:03:01]} 5. Nf3 {[%clk 0:03:00]}  e6 {[%clk 0:03:01]} 6. cxd4 {[%clk 0:03:00]}  d6 {[%clk 0:03:02]} 7. Bc4 {[%clk 0:03:00]}  Nc6 {[%clk 0:03:02]} 8. O-O {[%clk 0:03:00]}  Be7 {[%clk 0:03:02]} 9. Bd2 {[%clk 0:02:57]}  O-O {[%clk 0:03:02]} 10. Nc3 {[%clk 0:02:58]}  dxe5 {[%clk 0:03:01]} 11. dxe5 {[%clk 0:02:57]}  Nb6 {[%clk 0:03:00]} 12. Bb3 {[%clk 0:02:57]}  Bd7 {[%clk 0:02:59]} 13. Qe2 {[%clk 0:02:49]}  Nb4 {[%clk 0:02:52]} 14. Rfe1 {[%clk 0:02:40]}  Bc6 {[%clk 0:02:52]} 15. Rad1 {[%clk 0:02:34]}  Qd3 {[%clk 0:02:48]} 16. Be3 {[%clk 0:02:09]}  Qxe2 {[%clk 0:02:47]} 17. Rxe2 {[%clk 0:02:10]}  N6d5 {[%clk 0:02:46]} 18. Nxd5 {[%clk 0:02:05]}  Bxd5 {[%clk 0:02:46]} 19. Nd4 {[%clk 0:01:55]}  Rfd8 {[%clk 0:02:38]} 20. Red2 {[%clk 0:01:45]}  Bxb3 {[%clk 0:02:28]} 21. axb3 {[%clk 0:01:39]}  a6 {[%clk 0:02:26]} 22. g3 {[%clk 0:01:34]}  Rac8 {[%clk 0:02:24]} 23. Ne2 {[%clk 0:01:21]}  Rxd2 {[%clk 0:02:08]} 24. Rxd2 {[%clk 0:01:22]}  Nd5 {[%clk 0:02:02]} 25. Bd4 {[%clk 0:01:20]}  h6 {[%clk 0:02:00]} 26. Nc3 {[%clk 0:01:11]}  Nb4 {[%clk 0:01:57]} 27. Bb6 {[%clk 0:01:07]}  Bc5 {[%clk 0:01:34]} 28. Bxc5 {[%clk 0:01:03]}  Rxc5 {[%clk 0:01:35]} 29. f4 {[%clk 0:01:01]}  Rc7 {[%clk 0:01:32]} 30. Rd8+ {[%clk 0:01:00]}  Kh7 {[%clk 0:01:32]} 31. Kf2 {[%clk 0:01:00]}  Nc6 {[%clk 0:01:31]} 32. Rd2 {[%clk 0:00:54]}  Na5 {[%clk 0:01:31]} 33. b4 {[%clk 0:00:50]}  Nc4 {[%clk 0:01:31]} 34. Rd8 {[%clk 0:00:38]}  Nxb2 {[%clk 0:01:26]} 35. Ne4 {[%clk 0:00:39]}  b6 {[%clk 0:01:08]} 36. g4 {[%clk 0:00:34]}  a5 {[%clk 0:01:04]} 37. bxa5 {[%clk 0:00:34]}  bxa5 {[%clk 0:01:05]} 38. f5 {[%clk 0:00:30]}  Nc4 {[%clk 0:00:50]} 39. fxe6 {[%clk 0:00:20]}  fxe6 {[%clk 0:00:50]} 40. g5 {[%clk 0:00:16]}  Nxe5 {[%clk 0:00:41]} 41. Re8 {[%clk 0:00:15]}  Rc6 {[%clk 0:00:39]} 42. h4 {[%clk 0:00:15]}  Kg6 {[%clk 0:00:38]} 43. Kg3 {[%clk 0:00:15]}  Kf5 {[%clk 0:00:28]} 44. gxh6 {[%clk 0:00:09]}  gxh6 {[%clk 0:00:29]} 45. Nf2 {[%clk 0:00:09]}  Rc3+ {[%clk 0:00:27]} 46. Kg2 {[%clk 0:00:10]}  Rc2 {[%clk 0:00:25]} 47. Kg3 {[%clk 0:00:11]}  a4 {[%clk 0:00:24]} 48. Ra8 {[%clk 0:00:10]}  Rc3+ {[%clk 0:00:23]} 49. Kg2 {[%clk 0:00:10]}  a3 {[%clk 0:00:24]} 50. Ra5 {[%clk 0:00:09]}  h5 {[%clk 0:00:23]} 51. Kg1 {[%clk 0:00:08]}  Kf4 {[%clk 0:00:22]} 52. Kg2 {[%clk 0:00:08]}  Rc2 {[%clk 0:00:20]} 53. Ra4+ {[%clk 0:00:08]}  Kf5 {[%clk 0:00:19]} 54. Rxa3 {[%clk 0:00:08]}  Ng4 {[%clk 0:00:18]} 55. Ra5+ {[%clk 0:00:09]}  e5 {[%clk 0:00:16]} 56. Kg3 {[%clk 0:00:08]}  Rxf2 {[%clk 0:00:16]} 57. Ra3 {[%clk 0:00:08]}  Rf4 {[%clk 0:00:16]} 58. Ra8 {[%clk 0:00:08]}  Rd4 {[%clk 0:00:16]} 59. Rf8+ {[%clk 0:00:07]}  Ke4 {[%clk 0:00:16]} 60. Rf3 {[%clk 0:00:08]}  Rd3 {[%clk 0:00:16]} 61. Rxd3 {[%clk 0:00:08]}  Kxd3 {[%clk 0:00:16]} 0-1


[Site "https://www.chess.com"]